fUST/lending_fUST_20240709
["ID","MTS","AMOUNT","RATE_DAILY","PERIOD"]
[331577722,1720534242155,-500.0,0.00027397,2]
[331577723,1720534242168,-500.0,0.00027397,2]
[331577724,1720534242177,-500.0,0.00027397,2]
[331577725,1720534242186,-500.0,0.00027397,2]
[331577726,1720534242195,-500.0,0.00027397,2]
[331577727,1720534242204,-500.0,0.00027397,2]
[331577728,1720534242214,-500.0,0.00027397,2]
[331577729,1720534242223,-500.0,0.00027397,2]
[331577730,1720534242233,-500.0,0.00027397,2]
[331577731,1720534242242,-632.09318149,0.00027397,2]
[331577732,1720534242251,-500.0,0.00027397,2]
[331577733,1720534242260,-500.0,0.00027397,2]
[331577734,1720534242319,-500.0,0.00027397,2]
[331577735,1720534242328,-500.0,0.00027397,2]
[331577736,1720534242337,-500.0,0.00027397,2]
[331577737,1720534242346,-500.0,0.00027397,2]
[331577738,1720534242355,-500.0,0.00027397,2]
[331577739,1720534242365,-500.0,0.00027397,2]
[331577740,1720534242374,-500.0,0.00027397,2]
[331577741,1720534242383,-500.0,0.00027397,2]
[331577742,1720534242392,-260.39025884,0.00027397,2]
[331577743,1720534242402,-500.0,0.00027397,2]
[331577744,1720534242411,-500.0,0.00027397,2]
[331577745,1720534242420,-500.0,0.00027397,2]
[331577746,1720534242429,-500.0,0.00027397,2]
[331577747,1720534242438,-500.0,0.00027397,2]
[331577748,1720534242447,-500.0,0.00027397,2]
[331577749,1720534242457,-500.0,0.00027397,2]
[331577750,1720534242468,-500.0,0.00027397,2]
[331577751,1720534242477,-500.0,0.00027397,2]
[331577752,1720534242486,-500.0,0.00027397,2]
[331577753,1720534242495,-500.0,0.00027397,2]
[331577754,1720534242504,-500.0,0.00027397,2]
[331577755,1720534242513,-500.0,0.00027397,2]
[331577756,1720534242523,-500.0,0.00027397,2]
[331577757,1720534242532,-460.24972596,0.00027397,2]
[331577758,1720534242541,-500.0,0.00027397,2]
[331577759,1720534242550,-421.37287604,0.00027397,2]
[331577760,1720534242559,-500.0,0.00027397,2]
[331577761,1720534242568,-500.0,0.00027397,2]
[331577762,1720534242578,-500.0,0.00027397,2]
[331577763,1720534242587,-500.0,0.00027397,2]
[331577764,1720534242596,-500.0,0.00027397,2]
[331577765,1720534242606,-500.0,0.00027397,2]
[331577766,1720534242615,-500.0,0.00027397,2]
[331577767,1720534242625,-499.99999999,0.00027397,2]
[331577768,1720534242635,-500.0,0.00027397,2]
[331577769,1720534242645,-500.0,0.00027397,2]
[331577770,1720534242654,-500.0,0.00027397,2]
[331577771,1720534242664,-500.0,0.00027397,2]
[331577772,1720534242673,-500.0,0.00027397,2]
[331577773,1720534242683,-156.23822567,0.00027397,2]
[331577774,1720534242691,-500.0,0.00027397,2]
[331577775,1720534242701,-500.0,0.00027397,2]
[331577776,1720534242710,-500.0,0.00027397,2]
[331577778,1720534242718,-500.0,0.00027397,2]
[331577780,1720534242727,-500.0,0.00027397,2]
[331577781,1720534242735,-500.0,0.00027397,2]
[331577783,1720534242744,-3000.0,0.000274,2]
[331577784,1720534242757,-3000.0,0.0002741,2]
[331577785,1720534242766,-3000.0,0.0002742,2]
[331577786,1720534242775,-3000.0,0.0002743,2]
[331577787,1720534242784,-3000.0,0.0002744,2]
[331577788,1720534242794,-3000.0,0.0002745,2]
[331577789,1720534242803,-3000.0,0.0002746,2]
[331577790,1720534242812,-3000.0,0.0002747,2]
[331577791,1720534242823,-3000.0,0.0002748,2]
[331577792,1720534242836,-3000.0,0.0002749,2]
[331577793,1720534242847,-3000.0,0.000275,2]
[331577794,1720534242856,-3000.0,0.0002751,2]
[331577795,1720534242866,-3000.0,0.0002752,2]
[331577796,1720534242876,-3000.0,0.0002753,2]
[331577798,1720534242885,-3000.0,0.0002754,2]
[331577800,1720534242894,-3000.0,0.0002755,2]
[331577802,1720534242903,-3000.0,0.0002756,2]
[331577804,1720534242912,-3000.0,0.0002757,2]
[331577805,1720534242922,-3000.0,0.0002758,2]
[331577806,1720534242931,-3000.0,0.0002759,2]
[331577807,1720534242940,-3000.0,0.000276,2]
[331577808,1720534242949,-3000.0,0.0002761,2]
[331577809,1720534242959,-3000.0,0.0002762,2]
[331577810,1720534242969,-3000.0,0.0002763,2]
[331577811,1720534242978,-3000.0,0.0002764,2]
[331577812,1720534242987,-3000.0,0.0002765,2]
[331577813,1720534242996,-3000.0,0.0002766,2]
[331577814,1720534243006,-3000.0,0.0002767,2]
[331577815,1720534243015,-3000.0,0.0002768,2]
[331577816,1720534243024,-3000.0,0.0002769,2]
[331577817,1720534243033,-3000.0,0.000277,2]
[331577818,1720534243042,-3000.0,0.0002771,2]
[331577819,1720534243051,-3000.0,0.0002772,2]
[331577820,1720534243060,-3000.0,0.0002773,2]
[331577821,1720534243070,-3000.0,0.0002774,2]
[331577822,1720534243079,-3000.0,0.0002775,2]
[331577823,1720534243092,-3000.0,0.0002776,2]
[331577824,1720534243101,-3432.907333,0.0002777,2]
[331577825,1720534243154,-172.42394717,0.00028,30]
[331577826,1720534243167,-200.65529583,0.00028,2]
[331577827,1720534243176,-8989.14216193,0.000289,2]
[331577828,1720534243186,-230.60049797,0.00029,2]
[331577829,1720534243195,-230.60049797,0.00029,2]
[331577830,1720534243204,-230.60049797,0.00029,2]
[331577831,1720534243214,-230.60049797,0.00029,2]
[331577832,1720534243223,-1000.0,0.00029,29]
[331577833,1720534243232,-170.45207762,0.0003,4]
[331577834,1720534243241,-304.22675637,0.0003,30]
[331577835,1720534243251,-471.62828703,0.0003,4]
[331577836,1720534243260,-220.0,0.0003,2]
[331577837,1720534243270,-222916.94500332,0.000318,2]
[331577838,1720534243279,-150.0,0.00032877,2]
[331577839,1720534243288,-1000.0,0.00033,33]
[331577840,1720534243298,-220.0,0.00033,2]
[331577841,1720534243307,-220.0,0.00033,2]
[331577842,1720534243316,-750.0,0.00033295,2]
[331577843,1720534243326,-29640.12912396,0.00033333,2]
[331577844,1720534243335,-1000.0,0.00034,34]
[331577845,1720534243345,-2867.51698464,0.00034467,4]
[331577846,1720534243354,-1485.56177192,0.00034467,4]
[331577847,1720534243363,-6134.24034193,0.000345,30]
[331577849,1720534243372,-366.61198732,0.00034529,2]
[331577851,1720534243382,-1092.51200049,0.00034562,21]
[331577852,1720534243391,-1276.02932861,0.00034562,4]
[331577853,1720534243401,-1190.10564612,0.00034563,4]
[331577854,1720534243410,-235.62575763,0.00034574,4]
[331577855,1720534243419,-804.85981729,0.00034574,4]
[331577856,1720534243428,-1557.51416039,0.0003458,4]
[331577857,1720534243437,-615.86355941,0.00034588,4]
[331577858,1720534243446,-615.86355941,0.00034588,4]
[331577859,1720534243455,-1689.28232067,0.00034588,4]
[331577860,1720534243466,-696.01829329,0.00034588,4]
[331577861,1720534243475,-154.59033561,0.00034592,4]
[331577862,1720534243484,-850.16246994,0.00034592,4]
[331577863,1720534243494,-371.68939578,0.00034592,4]
[331577864,1720534243503,-435.0,0.00034602,2]
[331577865,1720534243512,-4336.74539453,0.0003461,2]
[331577866,1720534243527,-955.46861455,0.0003461,2]
[331577867,1720534243536,-150.0,0.00034615,2]
[331577868,1720534243545,-155.1936798,0.00034642,2]
[331577869,1720534243554,-643.5565645,0.00034669,4]
[331577870,1720534243563,-554.63473576,0.00034672,4]
[331577871,1720534243573,-154.59033561,0.00034762,4]
[331577872,1720534243582,-154.59033561,0.00034771,4]
[331577873,1720534243591,-154.59033561,0.00034771,4]
[331577874,1720534243600,-1000.0,0.000348,3]
[331577875,1720534243610,-162.3420948,0.00034811,4]
[331577876,1720534243619,-401.97424872,0.00034811,4]
[331577877,1720534243629,-360.8874203,0.00034811,4]
[331577878,1720534243638,-312.91526637,0.00034899,4]
[331577879,1720534243647,-154.59033561,0.00034899,4]
[331577880,1720534243656,-394.28228504,0.00034899,4]
[331577881,1720534243666,-19212.29267926,0.000349,2]
[331577882,1720534243675,-440413.29957168,0.000349,2]
[331577883,1720534243684,-151.0,0.000349,7]
[331577884,1720534243693,-5387.032474,0.000349,7]
[331577885,1720534243703,-5387.032474,0.000349,7]
[331577886,1720534243713,-2063.861202,0.000349,7]
[331577888,1720534243722,-2063.861202,0.000349,7]
[331577889,1720534243731,-151.0,0.000349,7]
[331577891,1720534243739,-304.396507,0.000349,7]
[331577892,1720534243754,-304.396507,0.000349,7]
[331577893,1720534243763,-267.905858,0.000349,7]
[331577894,1720534243772,-308.401883,0.000349,7]
[331577895,1720534243782,-267.905858,0.000349,7]
[331577896,1720534243794,-308.401883,0.000349,7]
[331577897,1720534243804,-151.0,0.000349,7]
[331577898,1720534243814,-151.0,0.000349,7]
[331577899,1720534243824,-811.705217,0.000349,7]
[331577900,1720534243836,-811.705217,0.000349,7]
[331577901,1720534243847,-151.0,0.000349,7]
[331577902,1720534243857,-368.228892,0.000349,7]
[331577903,1720534243866,-368.228892,0.000349,7]
[331577904,1720534243875,-151.0,0.000349,7]
[331577905,1720534243887,-264.705373,0.000349,7]
[331577906,1720534243896,-151.0,0.000349,7]
[331577907,1720534243953,-264.705373,0.000349,7]
[331577908,1720534243966,-151.0,0.000349,7]
[331577909,1720534243975,-169.796632,0.000349,7]
[331577910,1720534243986,-212.91402171,0.00034989,4]
[331577911,1720534243995,-265.09411912,0.00034999,2]
[331577912,1720534244005,-1183.21854684,0.00035,2]
[331577913,1720534244017,-155.2509681,0.00035,2]
[331577914,1720534244026,-5677.12573406,0.00035,10]
[331577915,1720534244036,-399.7881962,0.00035,2]
[331577916,1720534244045,-201.46559218,0.00035,120]
[331577917,1720534244055,-1662.41784921,0.00035,4]
[331577918,1720534244065,-192.802,0.00035079,30]
[331577919,1720534244075,-1000.0,0.00035259,4]
[331577920,1720534244086,-189.22156458,0.00035259,4]
[331577921,1720534244096,-256.79365305,0.00035292,2]
[331577922,1720534244106,-155.45127974,0.0003558,4]
[331577923,1720534244115,-3562.16,0.00035616,3]
[331577924,1720534244125,-153.0,0.00035717,2]
[331577925,1720534244134,-220.0,0.00036,2]
[331577926,1720534244143,-220.0,0.00036,2]
[331577927,1720534244152,-162.759691,0.00036301,2]
[331577928,1720534244161,-260.008,0.0003634,2]
[331577929,1720534244170,-1405.0,0.00036431,2]
[331577930,1720534244180,-278.2097649,0.00036795,2]
[331577931,1720534244189,-489.921,0.00036941,30]
[331577932,1720534244198,-243.43650151,0.00037,4]
[331577933,1720534244207,-500.68871146,0.00037807,4]
[331577934,1720534244221,-155.0,0.0003781,33]
[331577935,1720534244230,-208.81360879,0.00037899,4]
[331577936,1720534244239,-1000.0,0.00038,38]
[331577937,1720534244248,-201.46559218,0.00038,120]
[331577938,1720534244257,-2934.1716183,0.00038,2]
[331577939,1720534244265,-1000.0,0.00038186,3]
[331577940,1720534244274,-160.73850402,0.00038356,14]
[331577941,1720534244283,-509.17647503,0.00038356,14]
[331577942,1720534244292,-500.0,0.00038356,14]
[331577943,1720534244301,-500.0,0.00038356,14]
[331577944,1720534244324,-500.0,0.00038356,14]
[331577945,1720534244341,-500.0,0.00038356,14]
[331577946,1720534244360,-500.0,0.00038356,14]
[331577947,1720534244382,-500.0,0.00038356,14]
[331577948,1720534244401,-500.0,0.00038356,14]
[331577949,1720534244419,-500.0,0.00038356,14]
[331577950,1720534244435,-500.0,0.00038356,14]
[331577951,1720534244450,-500.0,0.00038356,14]
[331577952,1720534244468,-500.0,0.00038356,10]
[331577953,1720534244490,-511.35483874,0.00038356,14]
[331577954,1720534244502,-172.5417969,0.00038356,14]
[331577955,1720534244518,-514.61987913,0.00038356,14]
[331577956,1720534244534,-682.7,0.00038356,14]
[331577957,1720534244550,-500.0,0.00038356,14]
[331577958,1720534244563,-500.0,0.00038356,14]
[331577959,1720534244579,-500.0,0.00038356,14]
[331577960,1720534244593,-500.0,0.00038356,14]
[331577961,1720534244607,-500.0,0.00038356,14]
[331577962,1720534244621,-500.0,0.00038356,2]
[331577963,1720534244634,-426.37786324,0.00038356,14]
[331577964,1720534244648,-537.93287085,0.00038356,14]
[331577965,1720534244662,-507.65837536,0.00038356,14]
[331577966,1720534244676,-505.76708539,0.00038356,14]
[331577967,1720534244691,-500.0,0.00038356,14]
[331577968,1720534244706,-456.40808119,0.00038356,14]
[331577969,1720534244722,-500.0,0.00038356,14]
[331577970,1720534244737,-500.0,0.00038356,14]
[331577971,1720534244752,-500.0,0.00038356,14]
[331577972,1720534244769,-500.0,0.00038356,14]
[331577973,1720534244783,-500.0,0.00038356,14]
[331577974,1720534244794,-500.0,0.00038356,14]
[331577975,1720534244803,-453.55484542,0.00038356,14]
[331577976,1720534244813,-500.0,0.00038356,14]
[331577977,1720534244822,-500.0,0.00038356,14]
[331577978,1720534244833,-513.13292689,0.00038356,14]
[331577979,1720534244935,-500.0,0.00038356,14]
[331577980,1720534244951,-500.0,0.00038356,14]
[331577981,1720534244961,-500.0,0.00038356,14]
[331577982,1720534244973,-500.0,0.00038356,14]
[331577983,1720534244982,-500.0,0.00038356,14]
[331577984,1720534244991,-741.91,0.00038356,14]
[331577985,1720534245000,-548.42,0.00038356,14]
[331577986,1720534245009,-500.0,0.00038356,14]
[331577987,1720534245019,-500.0,0.00038356,14]
[331577988,1720534245029,-188.90921403,0.00038356,14]
[331577989,1720534245038,-500.0,0.00038356,14]
[331577990,1720534245047,-500.0,0.00038356,14]
[331577991,1720534245057,-550.82712263,0.00038356,14]
[331577992,1720534245066,-754.01,0.00038356,14]
[331577993,1720534245075,-500.0,0.00038356,14]
[331577994,1720534245086,-500.0,0.00038356,14]
[331577995,1720534245095,-500.0,0.00038356,14]
[331577996,1720534245105,-1054.07,0.00038356,14]
[331577997,1720534245115,-519.0,0.00038356,14]
[331577998,1720534245124,-773.56,0.00038356,14]
[331577999,1720534245134,-500.0,0.00038356,14]
[331578000,1720534245143,-580.51,0.00038356,14]
[331578001,1720534245152,-500.0,0.00038356,14]
[331578002,1720534245161,-500.0,0.00038356,14]
[331578003,1720534245170,-500.0,0.00038356,14]
[331578004,1720534245179,-500.0,0.00038356,14]
[331578005,1720534245189,-500.0,0.00038356,14]
[331578006,1720534245199,-500.0,0.00038356,14]
[331578007,1720534245208,-575.61,0.00038356,14]
[331578008,1720534245218,-500.0,0.00038356,14]
[331578009,1720534245228,-500.0,0.00038356,14]
[331578010,1720534245236,-870.48,0.00038356,14]
[331578011,1720534245245,-777.03,0.00038356,14]
[331578012,1720534245254,-521.3190759,0.00038356,14]
[331578013,1720534245263,-887.25,0.00038356,14]
[331578014,1720534245272,-500.0,0.00038356,14]
[331578015,1720534245282,-500.0,0.00038356,14]
[331578016,1720534245290,-5762.77,0.00038356,14]
[331578017,1720534245300,-500.0,0.00038356,14]
[331578018,1720534245311,-813.58,0.00038356,14]
[331578019,1720534245320,-500.0,0.00038356,14]
[331578020,1720534245329,-541.97078024,0.00038356,14]
[331578021,1720534245338,-390.65,0.00038356,14]
[331578022,1720534245348,-371.76759124,0.00038356,14]
[331578023,1720534245357,-500.0,0.00038356,14]
[331578024,1720534245367,-511.3184689,0.00038356,14]
[331578025,1720534245376,-500.0,0.00038356,14]
[331578026,1720534245385,-511.6766921,0.00038356,14]
[331578027,1720534245395,-500.0,0.00038356,14]
[331578028,1720534245405,-172.73484811,0.00038356,14]
[331578029,1720534245414,-296.20300114,0.00038356,14]
[331578030,1720534245424,-500.0,0.00038356,14]
[331578031,1720534245433,-776.67,0.00038356,14]
[331578032,1720534245443,-797.61,0.00038356,14]
[331578033,1720534245453,-500.0,0.00038356,14]
[331578034,1720534245462,-503.33363504,0.00038356,14]
[331578035,1720534245472,-500.0,0.00038356,14]
[331578036,1720534245481,-496.85576725,0.00038356,14]
[331578037,1720534245491,-500.0,0.00038356,14]
[331578038,1720534245500,-500.0,0.00038356,14]
[331578039,1720534245509,-500.0,0.00038356,14]
[331578040,1720534245519,-500.0,0.00038356,14]
[331578041,1720534245528,-500.0,0.00038356,14]
[331578042,1720534245537,-509.87141559,0.00038356,14]
[331578043,1720534245546,-500.0,0.00038356,14]
[331578044,1720534245555,-500.0,0.00038356,14]
[331578045,1720534245565,-500.0,0.00038356,14]
[331578046,1720534245574,-500.0,0.00038356,14]
[331578047,1720534245583,-500.0,0.00038356,14]
[331578048,1720534245593,-513.66285096,0.00038356,14]
[331578049,1720534245602,-500.0,0.00038356,14]
[331578050,1720534245611,-601.65816034,0.00038356,14]
[331578051,1720534245621,-500.0,0.00038356,14]
[331578052,1720534245631,-619.25024894,0.00038356,14]
[331578053,1720534245640,-500.0,0.00038356,14]
[331578054,1720534245650,-531.83719099,0.00038356,14]
[331578055,1720534245659,-500.0,0.00038356,14]
[331578056,1720534245669,-500.0,0.00038356,14]
[331578057,1720534245678,-500.0,0.00038356,14]
[331578058,1720534245688,-500.0,0.00038356,14]
[331578059,1720534245698,-1736.19,0.00038356,14]
[331578060,1720534245707,-500.0,0.00038356,14]
[331578061,1720534245717,-500.0,0.00038356,14]
[331578063,1720534245726,-500.0,0.00038356,14]
[331578065,1720534245736,-500.0,0.00038356,14]
[331578067,1720534245746,-500.0,0.00038356,14]
[331578070,1720534245758,-500.0,0.00038356,14]
[331578072,1720534245767,-505.53272742,0.00038356,14]
[331578075,1720534245777,-500.0,0.00038356,14]
[331578078,1720534245786,-3949.35,0.00038356,14]
[331578080,1720534245796,-500.0,0.00038356,14]
[331578082,1720534245806,-846.62,0.00038356,14]
[331578083,1720534245815,-633.45,0.00038356,14]
[331578085,1720534245826,-1185.68,0.00038356,14]
[331578086,1720534245835,-500.0,0.00038356,14]
[331578088,1720534245844,-500.0,0.00038356,14]
[331578089,1720534245854,-500.0,0.00038356,14]
[331578091,1720534245863,-500.0,0.00038356,14]
[331578092,1720534245872,-500.0,0.00038356,14]
[331578094,1720534245882,-500.0,0.00038356,14]
[331578095,1720534245891,-514.02965251,0.00038356,14]
[331578097,1720534245900,-1062.33,0.00038356,14]
[331578098,1720534245910,-500.0,0.00038356,14]
[331578100,1720534245920,-792.62,0.00038356,14]
[331578101,1720534245930,-500.0,0.00038356,14]
[331578103,1720534245939,-500.0,0.00038356,14]
[331578104,1720534245948,-500.0,0.00038356,14]
[331578106,1720534245960,-327.64704332,0.00038356,14]
[331578108,1720534245970,-670.16,0.00038356,14]
[331578109,1720534245980,-528.95964314,0.00038356,14]
[331578111,1720534245990,-6060.22,0.00038356,7]
[331578113,1720534246000,-500.0,0.00038356,14]
[331578115,1720534246010,-792.69,0.00038356,14]
[331578116,1720534246020,-500.0,0.00038356,14]
[331578118,1720534246030,-451.94088507,0.00038356,14]
[331578119,1720534246039,-5014.55,0.00038356,14]
[331578121,1720534246049,-529.36421729,0.00038356,14]
[331578123,1720534246059,-886.45,0.00038356,14]
[331578125,1720534246069,-500.0,0.00038356,2]
[331578126,1720534246078,-1408.92,0.00038356,14]
[331578128,1720534246088,-500.0,0.00038356,14]
[331578130,1720534246098,-513.14683272,0.00038356,14]
[331578133,1720534246107,-508.50283514,0.00038356,14]
[331578136,1720534246117,-500.0,0.00038356,14]
[331578138,1720534246126,-500.0,0.00038356,14]
[331578140,1720534246137,-500.0,0.00038356,14]
[331578142,1720534246146,-500.0,0.00038356,14]
[331578144,1720534246156,-669.31,0.00038356,14]
[331578146,1720534246166,-531.50100612,0.00038356,14]
[331578148,1720534246175,-573.11,0.00038356,14]
[331578149,1720534246185,-513.42181909,0.00038356,14]
[331578150,1720534246195,-500.0,0.00038356,14]
[331578151,1720534246205,-500.0,0.00038356,14]
[331578152,1720534246215,-10573.36,0.00038356,14]
[331578153,1720534246225,-748.37,0.00038356,14]
[331578154,1720534246235,-1093.14,0.00038356,14]
[331578155,1720534246245,-500.0,0.00038356,14]
[331578156,1720534246255,-517.91048525,0.00038356,14]
[331578157,1720534246265,-509.89269065,0.00038356,14]
[331578158,1720534246274,-507.70439464,0.00038356,14]
[331578159,1720534246284,-679.41,0.00038356,14]
[331578160,1720534246294,-500.0,0.00038356,14]
[331578162,1720534246303,-501.46344343,0.00038356,2]
[331578164,1720534246312,-500.0,0.00038356,2]
[331578165,1720534246322,-500.0,0.00038356,14]
[331578166,1720534246331,-507.95857743,0.00038356,14]
[331578167,1720534246340,-564.68,0.00038356,14]
[331578168,1720534246350,-849.23,0.00038356,14]
[331578169,1720534246360,-516.30747238,0.00038356,14]
[331578170,1720534246370,-500.0,0.00038356,14]
[331578171,1720534246379,-1243.8,0.00038356,14]
[331578172,1720534246451,-530.72751642,0.00038356,14]
[331578173,1720534246461,-1243.8,0.00038356,14]
[331578174,1720534246473,-1243.8,0.00038356,14]
[331578175,1720534246483,-1243.8,0.00038356,14]
[331578176,1720534246492,-500.0,0.00038356,14]
[331578177,1720534246503,-1243.8,0.00038356,14]
[331578178,1720534246513,-1243.8,0.00038356,14]
[331578180,1720534246522,-1243.8,0.00038356,14]
[331578182,1720534246531,-1243.8,0.00038356,14]
[331578183,1720534246542,-1243.8,0.00038356,14]
[331578184,1720534246551,-500.0,0.00038356,14]
[331578185,1720534246561,-1243.8,0.00038356,14]
[331578186,1720534246570,-1243.8,0.00038356,14]
[331578187,1720534246580,-1243.8,0.00038356,14]
[331578188,1720534246590,-1243.8,0.00038356,14]
[331578189,1720534246599,-1243.8,0.00038356,14]
[331578190,1720534246608,-1577.89,0.00038356,14]
[331578191,1720534246617,-1243.8,0.00038356,14]
[331578192,1720534246627,-573.27167444,0.00038356,14]
[331578193,1720534246636,-1243.8,0.00038356,14]
[331578194,1720534246646,-1243.8,0.00038356,14]
[331578195,1720534246655,-500.0,0.00038356,14]
[331578196,1720534246665,-1243.8,0.00038356,14]
[331578197,1720534246675,-1243.8,0.00038356,14]
[331578198,1720534246684,-1243.8,0.00038356,14]
[331578199,1720534246694,-1243.8,0.00038356,14]
[331578200,1720534246703,-1243.8,0.00038356,14]
[331578201,1720534246712,-1243.8,0.00038356,14]
[331578202,1720534246723,-1243.98409323,0.00038356,14]
[331578203,1720534246732,-500.0,0.00038356,14]
[331578204,1720534246741,-500.0,0.00038356,14]
[331578205,1720534246756,-500.0,0.00038356,14]
[331578206,1720534246765,-500.0,0.00038356,14]
[331578207,1720534246775,-500.0,0.00038356,14]
[331578208,1720534246784,-500.0,0.00038356,14]
[331578209,1720534246795,-500.0,0.00038356,14]
[331578210,1720534246804,-546.01445428,0.00038356,14]
[331578211,1720534246814,-500.0,0.00038356,14]
[331578212,1720534246825,-948.95,0.00038356,14]
[331578213,1720534246834,-259.66890469,0.00038356,14]
[331578214,1720534246844,-2327.04,0.00038356,14]
[331578215,1720534246853,-500.0,0.00038356,14]
[331578216,1720534246863,-500.0,0.00038356,14]
[331578217,1720534246872,-500.0,0.00038356,14]
[331578218,1720534246881,-500.0,0.00038356,14]
[331578219,1720534246892,-500.0,0.00038356,14]
[331578220,1720534246902,-500.0,0.00038356,14]
[331578221,1720534246914,-545.37909196,0.00038356,14]
[331578222,1720534246924,-500.0,0.00038356,14]
[331578223,1720534246934,-500.0,0.00038356,14]
[331578224,1720534246944,-500.0,0.00038356,14]
[331578225,1720534246953,-500.0,0.00038356,14]
[331578226,1720534246964,-500.0,0.00038356,14]
[331578227,1720534246976,-2761.72,0.00038356,14]
[331578228,1720534246986,-500.0,0.00038356,14]
[331578229,1720534246997,-500.0,0.00038356,14]
[331578230,1720534247007,-500.0,0.00038356,2]
[331578231,1720534247016,-923.3,0.00038356,14]
[331578232,1720534247026,-1451.29,0.00038356,14]
[331578233,1720534247035,-500.0,0.00038356,14]
[331578234,1720534247045,-4856.92412245,0.00038578,60]
[331578235,1720534247054,-268597.95528384,0.00038629,14]
[331578236,1720534247071,-265.00443593,0.00038629,14]
[331578237,1720534247083,-366.99479238,0.00038629,14]
[331578238,1720534247193,4711.13030053,0.00014999,2]
[331578239,1720534247239,-456.11118975,0.00019394,2]
[331578240,1720534247249,-3348.71,0.00035616,3]
[331578241,1720534247257,-507.59237546,0.00038356,14]
[331578242,1720534247266,-1982.10966785,0.00038629,14]
[331578243,1720534247276,-72591.07181333,0.0003863,5]
[331578244,1720534247497,-548.18443766,0.0003863,5]
[331578245,1720534247509,-552.52477346,0.0003863,5]
[331578246,1720534247524,-3520.17391313,0.0003863,5]
[331578247,1720534247536,-3131.62413688,0.0003863,5]
[331578248,1720534247547,-21895.62582258,0.0003863,5]
[331578249,1720534248010,-67.40234478,0.00016255,2]
[331578250,1720534255005,-254.85204242,0.00016255,2]
[331578251,1720534255020,-2753.52248367,0.00034462,4]
[331578252,1720534255162,-113.99450097,0.00034462,4]
[331578253,1720534255172,-154.59033561,0.00034588,4]
[331578254,1720534255181,-212.91402171,0.00034899,4]
[331578255,1720534255190,-511.71499781,0.00038356,14]
[331578256,1720534255199,-500.0,0.00038356,14]
[331578257,1720534255209,-500.0,0.00038356,14]
[331578258,1720534255218,-454.93621396,0.0003863,5]
[331578259,1720534255228,-500.0,0.0003863,14]
[331578260,1720534255237,-500.0,0.0003863,14]
[331578261,1720534255246,-500.0,0.0003863,14]
[331578262,1720534255256,-500.0,0.0003863,14]
[331578263,1720534255265,-500.0,0.0003863,14]
[331578264,1720534255274,-500.0,0.0003863,14]
[331578265,1720534255283,-249.34992993,0.0003863,14]
[331578326,1720534893244,3730.84051014,0.00014999,2]
[331578351,1720535028108,24900.0,0.00015373,2]
[331578369,1720535078424,-259.0,0.000156,2]
[331578370,1720535078448,-294.877563,0.00015643,2]
[331578371,1720535078472,-3000.0,0.00015915,2]
[331578372,1720535078499,-1000.0,0.00016,4]
[331578373,1720535078523,-2993.1679555,0.00016155,2]
[331578374,1720535078548,-300.0,0.00016254,2]
[331578375,1720535078573,-5758.9544815,0.00016255,2]
[331578381,1720535087307,1105.68240453,0.00015,2]
[331578396,1720535128118,949.73040029,0.00015,2]